[Event "Titled Tuesday Blitz June 28 Early 2022"]
[White "Karavade, Eesha"]
[Black "Blokhin, Sofia"]
[WhiteFideId "5012600"]
[BlackFideId "4508190"]
[WhiteElo "2258"]
[BlackElo "1760"]
[Result "1-0"]
[Round "07"]
[TimeControl "180+1"]
[Date "2022.06.28"]
[WhiteClock "0:00:58"]
[BlackClock "0:00:01"]

1. d4 {[%clk 0:03:00]}  f5 {[%clk 0:02:58]} 2. g3 {[%clk 0:02:58]}  e6 {[%clk 0:02:58]} 3. Bg2 {[%clk 0:02:58]}  d5 {[%clk 0:02:58]} 4. h4 {[%clk 0:02:54]}  Nf6 {[%clk 0:02:58]} 5. Bf4 {[%clk 0:02:51]}  Bd6 {[%clk 0:02:54]} 6. Nh3 {[%clk 0:02:50]}  O-O {[%clk 0:02:48]} 7. Nd2 {[%clk 0:02:49]}  b6 {[%clk 0:02:46]} 8. O-O {[%clk 0:02:45]}  Ne4 {[%clk 0:02:41]} 9. Nf3 {[%clk 0:02:38]}  Bb7 {[%clk 0:02:37]} 10. Ne5 {[%clk 0:02:34]}  Nd7 {[%clk 0:02:33]} 11. f3 {[%clk 0:02:31]}  Nef6 {[%clk 0:02:20]} 12. Nd3 {[%clk 0:02:28]}  Nh5 {[%clk 0:02:09]} 13. Bxd6 {[%clk 0:02:13]}  cxd6 {[%clk 0:02:09]} 14. Kh2 {[%clk 0:02:13]}  e5 {[%clk 0:02:05]} 15. c3 {[%clk 0:02:10]}  f4 {[%clk 0:01:55]} 16. g4 {[%clk 0:02:05]}  Ng3 {[%clk 0:01:53]} 17. g5 {[%clk 0:02:04]}  Nxf1+ {[%clk 0:01:44]} 18. Qxf1 {[%clk 0:02:04]}  Ba6 {[%clk 0:01:39]} 19. Nb4 {[%clk 0:02:02]}  Bb7 {[%clk 0:01:36]} 20. dxe5 {[%clk 0:02:01]}  dxe5 {[%clk 0:01:33]} 21. Rd1 {[%clk 0:02:01]}  Nc5 {[%clk 0:01:27]} 22. Qf2 {[%clk 0:01:48]}  a5 {[%clk 0:01:23]} 23. Nd3 {[%clk 0:01:47]}  Nxd3 {[%clk 0:01:19]} 24. Rxd3 {[%clk 0:01:46]}  Qe7 {[%clk 0:01:17]} 25. Qxb6 {[%clk 0:01:43]}  e4 {[%clk 0:01:10]} 26. Rd4 {[%clk 0:01:33]}  Ra6 {[%clk 0:00:48]} 27. Qb3 {[%clk 0:01:28]}  Re6 {[%clk 0:00:41]} 28. fxe4 {[%clk 0:01:15]}  dxe4 {[%clk 0:00:40]} 29. Bxe4 {[%clk 0:01:14]}  a4 {[%clk 0:00:31]} 30. Rxa4 {[%clk 0:01:14]}  Bxe4 {[%clk 0:00:11]} 31. Rxe4 {[%clk 0:01:13]}  Re8 {[%clk 0:00:10]} 32. Nxf4 {[%clk 0:01:12]}  Qd6 {[%clk 0:00:09]} 33. Kg1 {[%clk 0:01:00]}  Kf7 {[%clk 0:00:03]} 34. Rxe6 {[%clk 0:00:59]}  Qxf4 {[%clk 0:00:01]} 35. Rf6+ {[%clk 0:00:58]} 1-0


[Site "https://www.chess.com"]

[Event "Titled Tuesday Blitz June 28 Early 2022"]
[White "Kjartansson, David"]
[Black "Adla, Diego"]
[WhiteFideId "2301130"]
[BlackFideId "100072"]
[WhiteElo "2382"]
[BlackElo "2377"]
[Result "1-0"]
[Round "07"]
[TimeControl "180+1"]
[Date "2022.06.28"]
[WhiteClock "0:01:18"]
[BlackClock "0:00:59"]

1. d4 {[%clk 0:03:00]}  Nf6 {[%clk 0:02:59]} 2. Nc3 {[%clk 0:03:01]}  d5 {[%clk 0:02:58]} 3. Bf4 {[%clk 0:03:01]}  a6 {[%clk 0:02:57]} 4. e3 {[%clk 0:03:00]}  Bf5 {[%clk 0:02:48]} 5. Nf3 {[%clk 0:02:58]}  e6 {[%clk 0:02:47]} 6. Ne5 {[%clk 0:02:56]}  Bd6 {[%clk 0:02:43]} 7. g4 {[%clk 0:02:56]}  Bxe5 {[%clk 0:02:38]} 8. dxe5 {[%clk 0:02:56]}  Nxg4 {[%clk 0:02:37]} 9. f3 {[%clk 0:02:51]}  Nh6 {[%clk 0:02:37]} 10. e4 {[%clk 0:02:45]}  Bh3 {[%clk 0:02:15]} 11. Qd2 {[%clk 0:02:43]}  Bxf1 {[%clk 0:02:10]} 12. Rxf1 {[%clk 0:02:44]}  dxe4 {[%clk 0:02:05]} 13. Qxd8+ {[%clk 0:02:44]}  Kxd8 {[%clk 0:02:03]} 14. O-O-O+ {[%clk 0:02:42]}  Kc8 {[%clk 0:02:04]} 15. fxe4 {[%clk 0:02:38]}  Rf8 {[%clk 0:01:55]} 16. Rg1 {[%clk 0:02:33]}  b5 {[%clk 0:01:47]} 17. Rxg7 {[%clk 0:02:31]}  Ng8 {[%clk 0:01:47]} 18. Rxh7 {[%clk 0:02:29]}  Kb7 {[%clk 0:01:45]} 19. h4 {[%clk 0:02:25]}  Nc6 {[%clk 0:01:41]} 20. h5 {[%clk 0:02:26]}  Nge7 {[%clk 0:01:35]} 21. Rh1 {[%clk 0:02:09]}  Rg8 {[%clk 0:01:31]} 22. Rxf7 {[%clk 0:02:08]}  Rg2 {[%clk 0:01:28]} 23. Be3 {[%clk 0:02:08]}  Rh8 {[%clk 0:01:24]} 24. h6 {[%clk 0:02:02]}  Ng8 {[%clk 0:01:19]} 25. h7 {[%clk 0:01:56]}  Nxe5 {[%clk 0:01:18]} 26. Rf2 {[%clk 0:01:49]}  Rxf2 {[%clk 0:01:15]} 27. Bxf2 {[%clk 0:01:49]}  Nf6 {[%clk 0:01:15]} 28. Bd4 {[%clk 0:01:31]}  Nfd7 {[%clk 0:01:15]} 29. Ne2 {[%clk 0:01:27]}  Kc6 {[%clk 0:01:11]} 30. Nf4 {[%clk 0:01:26]}  Kd6 {[%clk 0:01:07]} 31. b4 {[%clk 0:01:22]}  Nf8 {[%clk 0:01:03]} 32. Bc5+ {[%clk 0:01:18]}  Kd7 {[%clk 0:00:59]} 33. Bxf8 {[%clk 0:01:18]} 1-0


[Site "https://www.chess.com"]

[Event "Titled Tuesday Blitz June 28 Early 2022"]
[White "Kopczynski, Michal"]
[Black "Barp, Alberto"]
[WhiteFideId "1124200"]
[BlackFideId "872555"]
[WhiteElo "2235"]
[BlackElo "2229"]
[Result "1/2-1/2"]
[Round "07"]
[TimeControl "180+1"]
[Date "2022.06.28"]
[WhiteClock "0:00:19"]
[BlackClock "0:00:38"]

1. e4 {[%clk 0:03:00]}  c5 {[%clk 0:02:57]} 2. d4 {[%clk 0:03:01]}  cxd4 {[%clk 0:02:57]} 3. c3 {[%clk 0:03:01]}  Nf6 {[%clk 0:02:56]} 4. Bd3 {[%clk 0:03:01]}  Nc6 {[%clk 0:02:54]} 5. f4 {[%clk 0:03:01]}  d5 {[%clk 0:02:50]} 6. e5 {[%clk 0:03:00]}  Ne4 {[%clk 0:02:50]} 7. Nf3 {[%clk 0:02:58]}  dxc3 {[%clk 0:02:50]} 8. Nxc3 {[%clk 0:02:58]}  Nxc3 {[%clk 0:02:45]} 9. bxc3 {[%clk 0:02:58]}  Bg4 {[%clk 0:02:45]} 10. O-O {[%clk 0:02:57]}  e6 {[%clk 0:02:45]} 11. h3 {[%clk 0:02:56]}  Bc5+ {[%clk 0:02:45]} 12. Kh2 {[%clk 0:02:54]}  Bxf3 {[%clk 0:02:39]} 13. Qxf3 {[%clk 0:02:55]}  Qd7 {[%clk 0:02:37]} 14. Qg3 {[%clk 0:02:50]}  O-O-O {[%clk 0:02:35]} 15. Rb1 {[%clk 0:02:46]}  f5 {[%clk 0:02:28]} 16. Be3 {[%clk 0:02:41]}  Bxe3 {[%clk 0:02:26]} 17. Qxe3 {[%clk 0:02:42]}  d4 {[%clk 0:02:26]} 18. Qf3 {[%clk 0:02:36]}  dxc3 {[%clk 0:02:25]} 19. Bb5 {[%clk 0:02:22]}  c2 {[%clk 0:02:24]} 20. Rbc1 {[%clk 0:02:19]}  Qd5 {[%clk 0:02:23]} 21. Bxc6 {[%clk 0:01:57]}  Qxc6 {[%clk 0:02:23]} 22. Qxc6+ {[%clk 0:01:43]}  bxc6 {[%clk 0:02:24]} 23. Rxc2 {[%clk 0:01:44]}  Kb7 {[%clk 0:02:21]} 24. Rb1+ {[%clk 0:01:42]}  Kc7 {[%clk 0:02:22]} 25. Rbc1 {[%clk 0:01:42]}  Rc8 {[%clk 0:02:22]} 26. Rxc6+ {[%clk 0:01:41]}  Kb7 {[%clk 0:02:23]} 27. Rxc8 {[%clk 0:01:35]}  Rxc8 {[%clk 0:02:23]} 28. Rxc8 {[%clk 0:01:15]}  Kxc8 {[%clk 0:02:24]} 29. g4 {[%clk 0:01:09]}  fxg4 {[%clk 0:02:21]} 30. hxg4 {[%clk 0:01:08]}  g6 {[%clk 0:02:22]} 31. Kg3 {[%clk 0:00:57]}  Kd7 {[%clk 0:02:22]} 32. Kf3 {[%clk 0:00:54]}  Kc6 {[%clk 0:02:09]} 33. f5 {[%clk 0:00:44]}  gxf5 {[%clk 0:02:00]} 34. gxf5 {[%clk 0:00:45]}  exf5 {[%clk 0:01:59]} 35. Kf4 {[%clk 0:00:45]}  Kd7 {[%clk 0:01:59]} 36. Kxf5 {[%clk 0:00:41]}  Ke7 {[%clk 0:01:59]} 37. Kg5 {[%clk 0:00:36]}  Ke6 {[%clk 0:01:59]} 38. Kh6 {[%clk 0:00:36]}  Kxe5 {[%clk 0:02:00]} 39. Kxh7 {[%clk 0:00:37]}  Kd4 {[%clk 0:01:39]} 40. Kg6 {[%clk 0:00:36]}  Kc3 {[%clk 0:01:37]} 41. Kf5 {[%clk 0:00:23]}  a5 {[%clk 0:01:03]} 42. Ke4 {[%clk 0:00:22]}  a4 {[%clk 0:01:02]} 43. a3 {[%clk 0:00:19]}  Kc2 {[%clk 0:00:46]} 44. Ke3 {[%clk 0:00:19]}  Kc3 {[%clk 0:00:42]} 45. Ke2 {[%clk 0:00:18]}  Kc2 {[%clk 0:00:37]} 46. Ke1 {[%clk 0:00:17]}  Kc1 {[%clk 0:00:35]} 47. Ke2 {[%clk 0:00:17]}  Kb2 {[%clk 0:00:36]} 48. Kd2 {[%clk 0:00:17]}  Kxa3 {[%clk 0:00:37]} 49. Kc1 {[%clk 0:00:17]}  Ka2 {[%clk 0:00:37]} 50. Kc2 {[%clk 0:00:18]}  a3 {[%clk 0:00:37]} 51. Kc1 {[%clk 0:00:18]}  Ka1 {[%clk 0:00:37]} 52. Kc2 {[%clk 0:00:18]}  Ka2 {[%clk 0:00:38]} 53. Kc1 {[%clk 0:00:19]}  Ka1 {[%clk 0:00:37]} 54. Kc2 {[%clk 0:00:19]}  a2 {[%clk 0:00:38]} 55. Kc1 {[%clk 0:00:19]} 1/2-1/2


[Site "https://www.chess.com"]

[Event "Titled Tuesday Blitz June 28 Early 2022"]
[White "Kupervaser, Erez"]
[Black "Ivanov, Mike"]
[WhiteFideId "2814587"]
[BlackFideId "2613158"]
[WhiteElo "1832"]
[BlackElo "2182"]
[Result "1/2-1/2"]
[Round "07"]
[TimeControl "180+1"]
[Date "2022.06.28"]
[WhiteClock "0:00:13"]
[BlackClock "0:00:17"]

1. e4 {[%clk 0:03:00]}  e6 {[%clk 0:02:59]} 2. d4 {[%clk 0:03:00]}  d5 {[%clk 0:02:59]} 3. Nc3 {[%clk 0:03:00]}  Bb4 {[%clk 0:02:58]} 4. a3 {[%clk 0:03:00]}  Bxc3+ {[%clk 0:02:54]} 5. bxc3 {[%clk 0:03:01]}  dxe4 {[%clk 0:02:54]} 6. Qg4 {[%clk 0:03:01]}  Nf6 {[%clk 0:02:52]} 7. Qxg7 {[%clk 0:03:02]}  Rg8 {[%clk 0:02:52]} 8. Qh6 {[%clk 0:03:02]}  Bd7 {[%clk 0:02:50]} 9. Bg5 {[%clk 0:02:57]}  Rg6 {[%clk 0:02:36]} 10. Qh4 {[%clk 0:02:57]}  Ba4 {[%clk 0:02:23]} 11. Ne2 {[%clk 0:02:47]}  h6 {[%clk 0:02:23]} 12. Bxh6 {[%clk 0:02:45]}  Nd5 {[%clk 0:02:20]} 13. Qh3 {[%clk 0:02:23]}  Bxc2 {[%clk 0:02:15]} 14. Nf4 {[%clk 0:02:21]}  Rg8 {[%clk 0:02:06]} 15. Rc1 {[%clk 0:02:12]}  Ba4 {[%clk 0:01:59]} 16. Nxe6 {[%clk 0:01:57]}  Qe7 {[%clk 0:01:08]} 17. Nc5 {[%clk 0:01:52]}  Bd7 {[%clk 0:01:08]} 18. Nxd7 {[%clk 0:01:51]}  Nxd7 {[%clk 0:01:07]} 19. c4 {[%clk 0:01:46]}  N5f6 {[%clk 0:00:59]} 20. Be3 {[%clk 0:01:43]}  Qxa3 {[%clk 0:00:52]} 21. Be2 {[%clk 0:01:35]}  Qb4+ {[%clk 0:00:33]} 22. Bd2 {[%clk 0:01:29]}  Qb2 {[%clk 0:00:28]} 23. Be3 {[%clk 0:01:05]}  Qb4+ {[%clk 0:00:28]} 24. Bd2 {[%clk 0:01:06]}  Qb2 {[%clk 0:00:28]} 25. d5 {[%clk 0:00:45]}  O-O-O {[%clk 0:00:23]} 26. Rd1 {[%clk 0:00:46]}  Kb8 {[%clk 0:00:13]} 27. Bc3 {[%clk 0:00:45]}  Qc2 {[%clk 0:00:11]} 28. Qe3 {[%clk 0:00:40]}  Rxg2 {[%clk 0:00:10]} 29. Rc1 {[%clk 0:00:29]}  Qb3 {[%clk 0:00:08]} 30. Kd2 {[%clk 0:00:26]}  Rdg8 {[%clk 0:00:07]} 31. Rb1 {[%clk 0:00:26]}  Qa3 {[%clk 0:00:04]} 32. Ra1 {[%clk 0:00:25]}  Qc5 {[%clk 0:00:01]} 33. Bd4 {[%clk 0:00:21]}  Qb4+ {[%clk 0:00:01]} 34. Kc2 {[%clk 0:00:21]}  Qd6 {[%clk 0:00:01]} 35. Rhb1 {[%clk 0:00:16]}  Nb6 {[%clk 0:00:01]} 36. c5 {[%clk 0:00:16]}  Qxd5 {[%clk 0:00:02]} 37. cxb6 {[%clk 0:00:16]}  cxb6 {[%clk 0:00:02]} 38. Bxb6 {[%clk 0:00:15]}  Rc8+ {[%clk 0:00:02]} 39. Kb2 {[%clk 0:00:10]}  axb6 {[%clk 0:00:02]} 40. Qxb6 {[%clk 0:00:10]}  Qd2+ {[%clk 0:00:02]} 41. Ka3 {[%clk 0:00:10]}  Rc3+ {[%clk 0:00:02]} 42. Ka4 {[%clk 0:00:09]}  Qd7+ {[%clk 0:00:03]} 43. Rb5 {[%clk 0:00:09]}  Rg5 {[%clk 0:00:01]} 44. Rb1 {[%clk 0:00:08]}  Rc2 {[%clk 0:00:01]} 45. Qxb7+ {[%clk 0:00:07]}  Qxb7 {[%clk 0:00:01]} 46. Rxb7+ {[%clk 0:00:08]}  Kc8 {[%clk 0:00:02]} 47. Rb8+ {[%clk 0:00:09]}  Kd7 {[%clk 0:00:02]} 48. R8b7+ {[%clk 0:00:07]}  Ke6 {[%clk 0:00:03]} 49. R1b6+ {[%clk 0:00:06]}  Kf5 {[%clk 0:00:03]} 50. Rxf7 {[%clk 0:00:05]}  Rg6 {[%clk 0:00:02]} 51. Bh5 {[%clk 0:00:04]}  Ra2+ {[%clk 0:00:02]} 52. Kb3 {[%clk 0:00:04]}  Rxf2 {[%clk 0:00:02]} 53. Bxg6+ {[%clk 0:00:04]}  Kxg6 {[%clk 0:00:03]} 54. Rf8 {[%clk 0:00:04]}  e3 {[%clk 0:00:03]} 55. Kc3 {[%clk 0:00:03]}  e2 {[%clk 0:00:02]} 56. Kd2 {[%clk 0:00:03]}  Kg7 {[%clk 0:00:02]} 57. Rfxf6 {[%clk 0:00:03]}  e1=Q+ {[%clk 0:00:02]} 58. Kxe1 {[%clk 0:00:03]}  Rxf6 {[%clk 0:00:03]} 59. Rxf6 {[%clk 0:00:03]}  Kxf6 {[%clk 0:00:04]} 60. Kf2 {[%clk 0:00:04]}  Kg5 {[%clk 0:00:04]} 61. Kg3 {[%clk 0:00:04]}  Kh5 {[%clk 0:00:05]} 62. h4 {[%clk 0:00:04]}  Kh6 {[%clk 0:00:06]} 63. Kh3 {[%clk 0:00:05]}  Kh7 {[%clk 0:00:07]} 64. Kg4 {[%clk 0:00:06]}  Kh8 {[%clk 0:00:08]} 65. Kg5 {[%clk 0:00:07]}  Kg8 {[%clk 0:00:09]} 66. Kh6 {[%clk 0:00:08]}  Kh8 {[%clk 0:00:10]} 67. h5 {[%clk 0:00:08]}  Kg8 {[%clk 0:00:11]} 68. Kg6 {[%clk 0:00:09]}  Kh8 {[%clk 0:00:11]} 69. Kh6 {[%clk 0:00:10]}  Kg8 {[%clk 0:00:12]} 70. Kg6 {[%clk 0:00:11]}  Kh8 {[%clk 0:00:13]} 71. h6 {[%clk 0:00:11]}  Kg8 {[%clk 0:00:14]} 72. Kh5 {[%clk 0:00:11]}  Kh8 {[%clk 0:00:15]} 73. Kg6 {[%clk 0:00:12]}  Kg8 {[%clk 0:00:16]} 74. h7+ {[%clk 0:00:12]}  Kh8 {[%clk 0:00:16]} 75. Kf7 {[%clk 0:00:13]}  Kxh7 {[%clk 0:00:17]} 1/2-1/2


[Site "https://www.chess.com"]

[Event "Titled Tuesday Blitz June 28 Early 2022"]
[White "Large, Peter G"]
[Black "Antonio, Jorge Carlos"]
[WhiteFideId "400866"]
[BlackFideId "113190"]
[WhiteElo "2064"]
[BlackElo "2247"]
[Result "1-0"]
[Round "07"]
[TimeControl "180+1"]
[Date "2022.06.28"]
[WhiteClock "0:01:10"]
[BlackClock "0:00:41"]

1. Nf3 {[%clk 0:03:00]}  d5 {[%clk 0:02:59]} 2. b3 {[%clk 0:03:01]}  c5 {[%clk 0:02:57]} 3. e3 {[%clk 0:03:00]}  Nc6 {[%clk 0:02:56]} 4. Bb2 {[%clk 0:03:00]}  Nf6 {[%clk 0:02:50]} 5. Bb5 {[%clk 0:02:59]}  Qc7 {[%clk 0:02:49]} 6. O-O {[%clk 0:02:58]}  a6 {[%clk 0:02:49]} 7. Bxc6+ {[%clk 0:02:58]}  Qxc6 {[%clk 0:02:49]} 8. Ne5 {[%clk 0:02:55]}  Qc7 {[%clk 0:02:48]} 9. d3 {[%clk 0:02:55]}  Nd7 {[%clk 0:02:47]} 10. f4 {[%clk 0:02:53]}  f6 {[%clk 0:02:46]} 11. Qh5+ {[%clk 0:02:52]}  g6 {[%clk 0:02:38]} 12. Nxg6 {[%clk 0:02:52]}  hxg6 {[%clk 0:02:31]} 13. Qxh8 {[%clk 0:02:51]}  b6 {[%clk 0:02:25]} 14. Qg8 {[%clk 0:02:50]}  Bb7 {[%clk 0:01:56]} 15. Qxg6+ {[%clk 0:02:49]}  Kd8 {[%clk 0:01:57]} 16. Nd2 {[%clk 0:02:49]}  Qd6 {[%clk 0:01:57]} 17. e4 {[%clk 0:02:33]}  dxe4 {[%clk 0:01:48]} 18. Nxe4 {[%clk 0:02:32]}  Bxe4 {[%clk 0:01:47]} 19. Qxe4 {[%clk 0:02:32]}  Rc8 {[%clk 0:01:46]} 20. Rae1 {[%clk 0:02:20]}  Nb8 {[%clk 0:01:40]} 21. Qe6 {[%clk 0:02:01]}  Qc7 {[%clk 0:01:29]} 22. Bxf6 {[%clk 0:01:57]}  Nc6 {[%clk 0:01:28]} 23. Qf7 {[%clk 0:01:45]}  Kd7 {[%clk 0:01:08]} 24. Qd5+ {[%clk 0:01:22]}  Ke8 {[%clk 0:01:05]} 25. Be5 {[%clk 0:01:21]}  Qd7 {[%clk 0:01:01]} 26. Qxd7+ {[%clk 0:01:21]}  Kxd7 {[%clk 0:01:01]} 27. Bc3 {[%clk 0:01:19]}  b5 {[%clk 0:01:01]} 28. Re4 {[%clk 0:01:19]}  b4 {[%clk 0:01:01]} 29. Bb2 {[%clk 0:01:19]}  e6 {[%clk 0:00:56]} 30. Rfe1 {[%clk 0:01:20]}  Nd8 {[%clk 0:00:55]} 31. g3 {[%clk 0:01:18]}  Bd6 {[%clk 0:00:53]} 32. Kg2 {[%clk 0:01:18]}  a5 {[%clk 0:00:53]} 33. h4 {[%clk 0:01:18]}  a4 {[%clk 0:00:53]} 34. h5 {[%clk 0:01:18]}  axb3 {[%clk 0:00:52]} 35. axb3 {[%clk 0:01:18]}  Bf8 {[%clk 0:00:48]} 36. Ra1 {[%clk 0:01:17]}  Ke7 {[%clk 0:00:47]} 37. Ra7+ {[%clk 0:01:14]}  Ke8 {[%clk 0:00:47]} 38. g4 {[%clk 0:01:14]}  Be7 {[%clk 0:00:44]} 39. g5 {[%clk 0:01:13]}  Kf7 {[%clk 0:00:44]} 40. g6+ {[%clk 0:01:11]}  Kf8 {[%clk 0:00:41]} 41. h6 {[%clk 0:01:10]} 1-0


[Site "https://www.chess.com"]

[Event "Titled Tuesday Blitz June 28 Early 2022"]
[White "Lashkin, Jegor"]
[Black "Narayanan, Srinath"]
[WhiteFideId "13907808"]
[BlackFideId "5018420"]
[WhiteElo "2368"]
[BlackElo "2472"]
[Result "0-1"]
[Round "07"]
[TimeControl "180+1"]
[Date "2022.06.28"]
[WhiteClock "0:00:03"]
[BlackClock "0:00:38"]

1. d4 {[%clk 0:03:00]}  Nf6 {[%clk 0:02:59]} 2. c4 {[%clk 0:03:01]}  e6 {[%clk 0:03:00]} 3. Nf3 {[%clk 0:03:01]}  d5 {[%clk 0:03:00]} 4. Nc3 {[%clk 0:03:01]}  Bb4 {[%clk 0:03:00]} 5. e3 {[%clk 0:03:01]}  O-O {[%clk 0:02:58]} 6. Bd2 {[%clk 0:03:02]}  b6 {[%clk 0:02:57]} 7. cxd5 {[%clk 0:03:01]}  exd5 {[%clk 0:02:58]} 8. Rc1 {[%clk 0:03:01]}  c5 {[%clk 0:02:53]} 9. Be2 {[%clk 0:03:01]}  Bb7 {[%clk 0:02:44]} 10. O-O {[%clk 0:02:58]}  Re8 {[%clk 0:02:44]} 11. dxc5 {[%clk 0:02:49]}  bxc5 {[%clk 0:02:43]} 12. Na4 {[%clk 0:02:45]}  Bxd2 {[%clk 0:02:40]} 13. Qxd2 {[%clk 0:02:45]}  Ne4 {[%clk 0:02:39]} 14. Qc2 {[%clk 0:02:44]}  c4 {[%clk 0:02:39]} 15. b3 {[%clk 0:02:27]}  cxb3 {[%clk 0:02:20]} 16. Qxb3 {[%clk 0:02:21]}  Ba6 {[%clk 0:02:20]} 17. Bxa6 {[%clk 0:02:17]}  Nxa6 {[%clk 0:02:21]} 18. Rfd1 {[%clk 0:02:12]}  Rb8 {[%clk 0:02:17]} 19. Qxd5 {[%clk 0:01:44]}  Qxd5 {[%clk 0:02:15]} 20. Rxd5 {[%clk 0:01:45]}  Nb4 {[%clk 0:02:16]} 21. Ra5 {[%clk 0:01:37]}  Nxa2 {[%clk 0:02:16]} 22. Ra1 {[%clk 0:01:36]}  Rec8 {[%clk 0:02:04]} 23. Nd4 {[%clk 0:01:17]}  Rc1+ {[%clk 0:01:50]} 24. Rxc1 {[%clk 0:01:17]}  Nxc1 {[%clk 0:01:50]} 25. f3 {[%clk 0:01:09]}  Rb1 {[%clk 0:01:32]} 26. h4 {[%clk 0:00:48]}  Nb3+ {[%clk 0:01:20]} 27. Kh2 {[%clk 0:00:44]}  Nxa5 {[%clk 0:01:21]} 28. fxe4 {[%clk 0:00:43]}  Nc4 {[%clk 0:01:22]} 29. Nc3 {[%clk 0:00:39]}  Re1 {[%clk 0:01:17]} 30. Nd5 {[%clk 0:00:37]}  Nxe3 {[%clk 0:01:14]} 31. Nf3 {[%clk 0:00:36]}  Ng4+ {[%clk 0:01:11]} 32. Kg3 {[%clk 0:00:36]}  Rxe4 {[%clk 0:01:11]} 33. Ng5 {[%clk 0:00:28]}  Ra4 {[%clk 0:01:09]} 34. Ne7+ {[%clk 0:00:27]}  Kf8 {[%clk 0:01:07]} 35. Nc6 {[%clk 0:00:27]}  Nf6 {[%clk 0:01:05]} 36. Kf3 {[%clk 0:00:19]}  h6 {[%clk 0:01:03]} 37. Nh3 {[%clk 0:00:19]}  a6 {[%clk 0:01:01]} 38. Nf4 {[%clk 0:00:18]}  Ra3+ {[%clk 0:00:57]} 39. Ke2 {[%clk 0:00:17]}  Rc3 {[%clk 0:00:55]} 40. Na5 {[%clk 0:00:14]}  Ne4 {[%clk 0:00:53]} 41. Nd3 {[%clk 0:00:11]}  Rc2+ {[%clk 0:00:46]} 42. Ke3 {[%clk 0:00:11]}  Nc5 {[%clk 0:00:45]} 43. Nf4 {[%clk 0:00:10]}  Nb3 {[%clk 0:00:41]} 44. Nb7 {[%clk 0:00:09]}  a5 {[%clk 0:00:41]} 45. Kd3 {[%clk 0:00:06]}  Rc7 {[%clk 0:00:41]} 46. Nd6 {[%clk 0:00:02]}  Rd7 {[%clk 0:00:41]} 47. Kc3 {[%clk 0:00:02]}  Rxd6 {[%clk 0:00:41]} 48. Kxb3 {[%clk 0:00:03]}  Rd4 {[%clk 0:00:39]} 49. Ne2 {[%clk 0:00:03]}  Rxh4 {[%clk 0:00:38]} 0-1


[Site "https://www.chess.com"]

[Event "Titled Tuesday Blitz June 28 Early 2022"]
[White "Li, Zhuoling"]
[Black "Bellahcene, Bilel"]
[WhiteFideId "8605629"]
[BlackFideId "696358"]
[WhiteElo "2298"]
[BlackElo "2543"]
[Result "0-1"]
[Round "07"]
[TimeControl "180+1"]
[Date "2022.06.28"]
[WhiteClock "0:00:06"]
[BlackClock "0:00:10"]

1. e4 {[%clk 0:03:00]}  Nf6 {[%clk 0:02:59]} 2. e5 {[%clk 0:03:00]}  Nd5 {[%clk 0:02:59]} 3. Nf3 {[%clk 0:02:57]}  d6 {[%clk 0:02:59]} 4. d4 {[%clk 0:02:51]}  dxe5 {[%clk 0:02:59]} 5. dxe5 {[%clk 0:02:49]}  Nc6 {[%clk 0:02:58]} 6. h3 {[%clk 0:02:46]}  Bf5 {[%clk 0:02:47]} 7. Bd3 {[%clk 0:02:34]}  Bxd3 {[%clk 0:02:43]} 8. Qxd3 {[%clk 0:02:30]}  Ndb4 {[%clk 0:02:41]} 9. Qxd8+ {[%clk 0:02:26]}  Rxd8 {[%clk 0:02:42]} 10. Na3 {[%clk 0:02:26]}  e6 {[%clk 0:02:35]} 11. O-O {[%clk 0:02:20]}  a6 {[%clk 0:02:31]} 12. Bg5 {[%clk 0:02:08]}  Be7 {[%clk 0:02:20]} 13. Bxe7 {[%clk 0:02:04]}  Kxe7 {[%clk 0:02:21]} 14. Rad1 {[%clk 0:02:00]}  Rxd1 {[%clk 0:01:45]} 15. Rxd1 {[%clk 0:01:58]}  Rd8 {[%clk 0:01:45]} 16. Rxd8 {[%clk 0:01:50]}  Nxd8 {[%clk 0:01:24]} 17. Kf1 {[%clk 0:01:45]}  Nxa2 {[%clk 0:01:22]} 18. Ke2 {[%clk 0:01:40]}  Nb4 {[%clk 0:01:17]} 19. c3 {[%clk 0:01:37]}  Nd5 {[%clk 0:01:16]} 20. g3 {[%clk 0:01:32]}  b5 {[%clk 0:01:15]} 21. Nc2 {[%clk 0:01:30]}  c5 {[%clk 0:01:14]} 22. Kd3 {[%clk 0:01:25]}  Nc6 {[%clk 0:01:14]} 23. Ke4 {[%clk 0:01:18]}  Nb6 {[%clk 0:01:10]} 24. b3 {[%clk 0:01:09]}  a5 {[%clk 0:01:05]} 25. Nd2 {[%clk 0:01:03]}  f5+ {[%clk 0:00:57]} 26. exf6+ {[%clk 0:01:00]}  gxf6 {[%clk 0:00:58]} 27. f4 {[%clk 0:01:00]}  b4 {[%clk 0:00:45]} 28. Kd3 {[%clk 0:00:48]}  a4 {[%clk 0:00:40]} 29. bxa4 {[%clk 0:00:39]}  b3 {[%clk 0:00:38]} 30. Ne3 {[%clk 0:00:32]}  Na5 {[%clk 0:00:34]} 31. c4 {[%clk 0:00:20]}  Nxa4 {[%clk 0:00:33]} 32. g4 {[%clk 0:00:19]}  h6 {[%clk 0:00:27]} 33. h4 {[%clk 0:00:19]}  Kd6 {[%clk 0:00:24]} 34. g5 {[%clk 0:00:18]}  fxg5 {[%clk 0:00:25]} 35. fxg5 {[%clk 0:00:18]}  hxg5 {[%clk 0:00:25]} 36. hxg5 {[%clk 0:00:18]}  Ke5 {[%clk 0:00:24]} 37. Nf3+ {[%clk 0:00:18]}  Kd6 {[%clk 0:00:23]} 38. g6 {[%clk 0:00:18]}  Ke7 {[%clk 0:00:24]} 39. Ng4 {[%clk 0:00:16]}  b2 {[%clk 0:00:22]} 40. Kc2 {[%clk 0:00:16]}  Nxc4 {[%clk 0:00:21]} 41. Ng5 {[%clk 0:00:14]}  Na3+ {[%clk 0:00:22]} 42. Kd2 {[%clk 0:00:12]}  b1=Q {[%clk 0:00:22]} 43. g7 {[%clk 0:00:12]}  Qb2+ {[%clk 0:00:15]} 44. Ke3 {[%clk 0:00:12]}  Nc4+ {[%clk 0:00:15]} 45. Kd3 {[%clk 0:00:10]}  Qc3+ {[%clk 0:00:14]} 46. Ke4 {[%clk 0:00:10]}  Nab6 {[%clk 0:00:09]} 47. g8=Q {[%clk 0:00:06]}  Nd6+ {[%clk 0:00:10]} 48. Kf4 {[%clk 0:00:06]}  Nd5# {[%clk 0:00:10]} 0-1


[Site "https://www.chess.com"]